lending/lending_fUSD_20250920
["ID","MTS","AMOUNT","RATE_DAILY","PERIOD"]
[386536330,1758366331936,150.00000001,0.00018,2]
[386536331,1758366331986,150.0,0.00018,2]
[386536333,1758366335200,150.0,0.00018,2]
[386536568,1758366632392,-300.0,0.00019232,2]
[386536569,1758366632403,-673.0,0.00019232,2]
[386536570,1758366632413,-26.71745748,0.00019232,2]
[386536571,1758366632433,-273.28254252,0.00019232,2]
[386536572,1758366632442,-300.0,0.00019232,2]
[386536573,1758366632452,-300.0,0.00019232,2]
[386536574,1758366632461,-288.50544167,0.00019232,2]
[386536577,1758366632529,-911.49455833,0.00019232,2]
[386536578,1758366632539,-617.63740156,0.00019233,2]
[386536579,1758366632550,-187.76299232,0.00019233,2]
[386536580,1758366632560,-500.0,0.00019233,2]
[386536581,1758366632569,-500.0,0.00019233,2]
[386536582,1758366632579,-500.0,0.00019233,2]
[386536583,1758366632589,-500.0,0.00019233,2]
[386536584,1758366632599,-500.0,0.00019233,2]
[386536585,1758366632608,-500.0,0.00019233,2]
[386536586,1758366632618,-241.9257543,0.00019233,2]
[386536587,1758366632685,-258.0742457,0.00019233,2]
[386536588,1758366632695,-500.0,0.00019233,2]
[386536589,1758366632705,-20.46787998,0.00019233,2]
[386536590,1758366632746,-479.53212002,0.00019233,2]
[386536591,1758366632755,-500.0,0.00019233,2]
[386536592,1758366632765,-479.88348524,0.00019233,2]
[386536593,1758366632781,-20.11651476,0.00019233,2]
[386536594,1758366632790,-500.0,0.00019233,2]
[386536595,1758366632800,-500.0,0.00019233,2]
[386536596,1758366632810,-500.0,0.00019233,2]
[386536597,1758366632819,-500.0,0.00019233,2]
[386536598,1758366632835,-500.0,0.00019233,2]
[386536599,1758366632845,-500.0,0.00019233,2]
[386536600,1758366632855,-500.0,0.00019233,2]
[386536601,1758366632864,-500.0,0.00019233,2]
[386536602,1758366632875,-500.0,0.00019233,2]
[386536603,1758366632884,-500.0,0.00019233,2]
[386536604,1758366632894,-500.0,0.00019233,2]
[386536605,1758366632904,-500.0,0.00019233,2]
[386536606,1758366632913,-500.0,0.00019233,2]
[386536607,1758366632923,-500.0,0.00019233,2]
[386536608,1758366632932,-500.0,0.00019233,2]
[386536609,1758366632941,-500.0,0.00019233,2]
[386536610,1758366632951,-500.0,0.00019233,2]
[386536611,1758366632960,-500.0,0.00019233,2]
[386536612,1758366632970,-169.9511521,0.00019233,2]
[386536613,1758366632979,-7965.41053268,0.00019234,2]
[386536614,1758366632989,-250.0,0.00019238,2]
[386536615,1758366632998,-734.0,0.00019241,2]
[386536616,1758366633008,-162.380719,0.00019246,2]
[386536617,1758366633018,-3714.77773317,0.00019289,2]
[386536618,1758366633029,-1228.0,0.00019412,2]
[386536619,1758366633039,-817.0,0.00019412,2]
[386536620,1758366633049,-151.0,0.00019412,2]
[386536621,1758366633059,-817.0,0.00019412,2]
[386536622,1758366633069,-817.0,0.00019412,2]
[386536623,1758366633079,-151.0,0.00019412,2]
[386536624,1758366633089,-151.0,0.00019412,2]
[386536625,1758366633098,-151.0,0.00019412,2]
[386536626,1758366633109,-151.0,0.00019412,2]
[386536627,1758366633119,-151.0,0.00019412,2]
[386536628,1758366633129,-151.0,0.00019412,2]
[386536629,1758366633140,-151.0,0.00019412,2]
[386536630,1758366633150,-165.28,0.00019484,2]
[386536631,1758366633159,-150.0,0.000195,4]
[386536632,1758366633169,-151.0,0.00019675,2]
[386536634,1758366633179,-1425.0,0.00019724,2]
[386536635,1758366633189,-1425.0,0.00019743,2]
[386536636,1758366633199,-1425.0,0.00019767,2]
[386536637,1758366633209,-164.74694,0.000198,2]
[386536638,1758366633219,-6345.6124,0.00019805,2]
[386536639,1758366633230,-658.72723083,0.00019808,2]
[386536640,1758366633241,-1425.0,0.00019818,2]
[386536641,1758366633250,-882.76831988,0.00019841,2]
[386536642,1758366633260,-214.58,0.00019864,2]
[386536643,1758366633270,-329.47668243,0.00019888,2]
[386536645,1758366633280,-151.0,0.00019888,2]
[386536646,1758366633290,-151.0,0.00019888,2]
[386536647,1758366633300,-151.0,0.00019888,2]
[386536648,1758366633311,-151.0,0.00019888,2]
[386536649,1758366633321,-245.82083337,0.00019888,2]
[386536650,1758366633331,-500.0,0.00019888,2]
[386536651,1758366633342,-500.0,0.00019888,2]
[386536652,1758366633352,-500.0,0.00019888,2]
[386536653,1758366633361,-279.93837138,0.00019888,2]
[386536654,1758366633371,-200.0,0.00019888,2]
[386536655,1758366633381,-1582.0,0.00019891,2]
[386536656,1758366633390,-569.0,0.00019891,2]
[386536657,1758366633400,-1304.0,0.00019891,2]
[386536658,1758366633410,-602.0,0.00019891,2]
[386536659,1758366633419,-813.0,0.00019891,2]
[386536660,1758366633429,-277.4834,0.00019892,2]
[386536661,1758366633440,-725.4163,0.00019892,2]
[386536662,1758366633449,-2124.6448,0.00019892,2]
[386536663,1758366633459,-150.02540457,0.000199,2]
[386536664,1758366633469,-166.2951696,0.000199,2]
[386536665,1758366633480,-560.43512831,0.000199,2]
[386536666,1758366633489,-196.46669092,0.000199,2]
[386536667,1758366633499,-164.74695,0.000199,2]
[386536668,1758366633509,-8616.61685832,0.000199,2]
[386536669,1758366633519,-10693.79474204,0.000199,2]
[386536670,1758366633530,-5000.0,0.000199,2]
[386536671,1758366633540,-4174.0,0.00019918,2]
[386536672,1758366633549,-898.0,0.00019918,2]
[386536673,1758366633560,-1178.0,0.00019918,2]
[386536674,1758366633570,-150.0,0.00019945,2]
[386536675,1758366633580,-1425.0,0.00019949,2]
[386536676,1758366633589,-1425.0,0.00019969,2]
[386536677,1758366633600,-500.0,0.00019973,2]
[386536678,1758366633609,-500.0,0.00019973,2]
[386536679,1758366633619,-481.98032782,0.00019973,2]
[386536680,1758366633629,-503.76607902,0.00019973,2]
[386536681,1758366633638,-500.0,0.00019973,2]
[386536682,1758366633648,-500.0,0.00019973,2]
[386536683,1758366633658,-500.0,0.00019973,2]
[386536684,1758366633667,-500.0,0.00019973,2]
[386536685,1758366633677,-504.5498583,0.00019973,2]
[386536686,1758366633687,-500.0,0.00019973,2]
[386536687,1758366633697,-500.0,0.00019973,2]
[386536688,1758366633707,-544.5225466,0.00019973,2]
[386536689,1758366633718,-500.0,0.00019973,2]
[386536690,1758366633728,-500.0,0.00019973,2]
[386536691,1758366633739,-500.0,0.00019973,2]
[386536692,1758366633749,-169.29324774,0.00019973,2]
[386536693,1758366633759,-500.0,0.00019973,2]
[386536694,1758366633769,-500.0,0.00019973,2]
[386536695,1758366633779,-163.09081264,0.00019973,2]
[386536696,1758366633789,-500.0,0.00019973,2]
[386536697,1758366633799,-500.0,0.00019973,2]
[386536698,1758366633809,-500.0,0.00019973,2]
[386536699,1758366633819,-500.65173713,0.00019973,2]
[386536700,1758366633831,-150.0,0.00019992,2]
[386536701,1758366633842,-254.69454339,0.00019992,2]
[386536702,1758366633852,-150.0,0.00019992,2]
[386536703,1758366633863,-428.0,0.00019992,2]
[386536704,1758366633875,-150.0,0.00019992,2]
[386536705,1758366633885,-500.0,0.00019992,2]
[386536706,1758366633895,-150.0,0.00019992,2]
[386536707,1758366633907,-150.0,0.00019992,2]
[386536708,1758366633918,-500.0,0.00019992,2]
[386536709,1758366633928,-150.0,0.00019992,2]
[386536710,1758366633938,-195.36879209,0.00019992,2]
[386536711,1758366633948,-152.45933607,0.00019992,2]
[386536712,1758366633958,-500.0,0.00019992,2]
[386536713,1758366633968,-500.0,0.00019992,2]
[386536714,1758366633979,-699.0,0.00019992,2]
[386536715,1758366633989,-150.0,0.00019992,2]
[386536716,1758366633999,-2910.0,0.00019992,2]
[386536717,1758366634009,-500.0,0.00019992,2]
[386536718,1758366634019,-500.0,0.00019992,2]
[386536719,1758366634029,-500.0,0.00019992,2]
[386536720,1758366634040,-500.0,0.00019992,2]
[386536721,1758366634051,-500.0,0.00019992,2]
[386536722,1758366634060,-150.0,0.00019992,2]
[386536723,1758366634071,-150.0,0.00019992,2]
[386536724,1758366634081,-150.0,0.00019992,2]
[386536725,1758366634090,-150.0,0.00019992,2]
[386536726,1758366634100,-500.0,0.00019992,2]
[386536727,1758366634110,-150.0,0.00019992,2]
[386536728,1758366634119,-150.0,0.00019992,2]
[386536729,1758366634129,-150.0,0.00019992,2]
[386536730,1758366634140,-150.0,0.00019992,2]
[386536731,1758366634150,-150.0,0.00019992,2]
[386536732,1758366634161,-1083.0,0.00019992,2]
[386536733,1758366634171,-533.0,0.00019992,2]
[386536734,1758366634181,-14392.816756,0.00019995,2]
[386536735,1758366634192,-151.0,0.00019995,2]
[386536736,1758366634203,-2054.52392533,0.0002,2]
[386536737,1758366634213,-83118.86242218,0.0002,2]
[386536738,1758366634227,-1390.06814635,0.0002,2]
[386536739,1758366634239,-546.50185365,0.0002,2]
[386536742,1758366637817,-236.73104375,0.00019411,2]
[386536743,1758366637828,-500.0,0.00019411,2]
[386536744,1758366637838,-198.24369319,0.00019411,2]
[386536745,1758366637849,-151.0,0.00019412,2]
[386536746,1758366637858,-151.0,0.00019412,2]
[386536747,1758366637867,-73.02526306,0.00019412,2]
[386536748,1758366637879,-77.97473694,0.00019412,2]
[386536749,1758366637889,-3378.48961281,0.0002,2]
[386536750,1758366637901,-2994.36506858,0.0002,2]
[386536751,1758366637913,-558.24911573,0.0002,2]
[386536752,1758366637961,-575.30635287,0.0002,2]
[386536753,1758366637984,-4684.02766231,0.0002,2]
[386536754,1758366637995,-542.90968987,0.0002,2]
[386536755,1758366638066,-6523.19076568,0.0002,2]
[386536756,1758366638078,-7673.56228164,0.0002,2]
[386536760,1758366639857,-500.0,0.00019231,2]
[386536761,1758366639867,-500.0,0.00019231,2]
[386536762,1758366639879,-466.99511521,0.00019231,2]
[386536763,1758366639889,-817.0,0.00019412,2]
[386536764,1758366639898,-216.00488479,0.00019918,2]
[386536765,1758366639915,-4012.99511521,0.00019918,2]
[386536766,1758366639924,-6206.02633267,0.0002,2]
[386536767,1758366640051,-343.78637387,0.0002,2]
[386536768,1758366640063,-242724.25943492,0.0002,2]
[386536769,1758366640072,-4000.0,0.0002,4]
[386536770,1758366640082,-2339136.64984598,0.0002,2]
[386536771,1758366640093,-10748.10723205,0.0002,2]
[386536772,1758366640103,-1509.61290643,0.0002,2]
[386536773,1758366640112,-538.22165758,0.0002,2]
[386536774,1758366640121,-2379.29176067,0.0002,2]
[386536775,1758366640131,-25201.4210492,0.0002,2]
[386536776,1758366640140,-88601.74771199,0.0002,5]
[386536777,1758366640152,-1572.45894298,0.0002,5]
[386536778,1758366640175,-740.40800944,0.0002,5]
[386536779,1758366640187,-465.46869398,0.0002,5]
[386536780,1758366640198,-435.38038272,0.0002,5]
[386536782,1758366640234,-228.26266,0.00019411,2]
[386536783,1758366640243,-1125.86734,0.0002,5]
[386536784,1758366640255,-1524.91634425,0.0002,5]
[386536785,1758366640266,-835.55,0.0002,5]
[386536786,1758366640289,-10188.8210005,0.0002,5]
[386536787,1758366640305,-10754.00107793,0.0002,5]
[386536788,1758366640316,-546.0,0.0002,5]
[386536789,1758366640328,-4213.16311476,0.0002,5]
[386536790,1758366640337,-2338.83688524,0.0002,4]
[386536799,1758366643262,-500.0,0.00019992,2]
[386536800,1758366643271,-175.82372718,0.0002,4]
[386536801,1758366643281,-1087.38124152,0.0002,2]
[386536809,1758366645824,-150.0,0.00019992,2]
[386536810,1758366645838,-853.17043024,0.0002,2]
[386536811,1758366645850,-3813.48314527,0.0002,2]
[386536812,1758366645861,-2343.4,0.0002,2]
[386536813,1758366645879,-17633.13310247,0.0002,2]
[386536814,1758366645982,-443.37196412,0.0002,2]
[386537595,1758366716499,5011.13009,0.00022121,30]
[386537618,1758366720074,251.80130658,0.00018372,30]
[386537658,1758366740126,150.0,0.00018,2]
[386537659,1758366740385,150.0,0.0001918,2]
[386537697,1758366780739,288.06069473,0.00018372,30]
[386537807,1758367022643,237.73,0.00019111,2]
[386537929,1758367115323,2256.33579037,0.00030136,120]
[386537941,1758367261248,150.0,0.00018,2]
[386537942,1758367261638,150.0,0.0001918,2]
[386537943,1758367275804,166.28,0.00019058,2]
[386537954,1758367513323,150.0,0.00018,2]
[386537955,1758367530160,150.0,0.00018,2]
[386537958,1758367535970,150.0,0.00018,2]
[386537959,1758367554254,-150.0,0.00019245,7]
[386537960,1758367554280,-250.0,0.0001925,2]
[386537961,1758367554306,-150.0,0.00019256,2]
[386537962,1758367554331,-195.0,0.00019266,2]
[386537963,1758367554361,-516.38316968,0.00019406,2]
[386537964,1758367554386,-160.0,0.00019409,2]
[386537965,1758367554414,-162.99945725,0.0001941,2]
[386537966,1758367554443,-614.70704302,0.00019811,2]
[386537967,1758367554472,-528.82154686,0.00019897,2]
[386537968,1758367554497,-300.0,0.00019899,2]
[386537969,1758367554523,-1200.0,0.00019899,2]
[386537970,1758367554547,-6980.8879,0.000199,2]
[386537971,1758367554572,-166.29516957,0.000199,2]
[386537972,1758367554597,-150.02540457,0.000199,2]
[386537973,1758367554622,-151.0,0.00019909,2]
[386537974,1758367554646,-151.0,0.00019909,2]
[386537975,1758367554670,-151.0,0.00019909,2]
[386537976,1758367554695,-151.0,0.00019909,2]
[386537977,1758367554721,-152.0,0.00019909,2]
[386537978,1758367554746,-152.0,0.00019909,2]
[386537979,1758367554772,-152.0,0.00019909,2]
[386537980,1758367554798,-152.0,0.00019909,2]
[386537981,1758367554823,-152.0,0.00019909,2]
[386537982,1758367554848,-152.0,0.00019909,2]
[386537983,1758367554874,-152.0,0.00019909,2]
[386537984,1758367554899,-153.76136712,0.00019909,2]
[386537985,1758367554926,-152.0,0.00019909,2]
[386537986,1758367554952,-172.04867459,0.00019909,2]
[386537987,1758367554977,-1228.0,0.00019909,2]
[386537988,1758367555002,-151.0,0.00019909,2]
[386537989,1758367555028,-817.0,0.00019909,2]
[386537990,1758367555053,-151.0,0.00019909,2]
[386537991,1758367555079,-817.0,0.00019909,2]
[386537992,1758367555104,-151.0,0.00019909,2]
[386537993,1758367555133,-151.0,0.00019909,2]
[386537994,1758367555159,-569.60415934,0.00019909,2]
[386537995,1758367555185,-157.48675293,0.00019909,2]
[386537996,1758367555212,-151.0,0.00019909,2]
[386537997,1758367555237,-151.0,0.00019909,2]
[386537998,1758367555261,-151.0,0.00019909,2]
[386537999,1758367555287,-151.0,0.00019909,2]
[386538000,1758367555311,-151.0,0.00019909,2]
[386538001,1758367555335,-151.0,0.00019909,2]
[386538002,1758367555361,-880.83145519,0.0001997,2]
[386538003,1758367555385,-500.0,0.00019973,2]
[386538004,1758367555409,-500.0,0.00019973,2]
[386538005,1758367555434,-500.0,0.00019973,2]
[386538006,1758367555459,-500.0,0.00019973,2]
[386538007,1758367555484,-500.0,0.00019973,2]
[386538008,1758367555515,-500.0,0.00019973,2]
[386538009,1758367555540,-500.0,0.00019973,2]
[386538010,1758367555566,-500.0,0.00019973,2]
[386538011,1758367555591,-500.0,0.00019973,2]
[386538012,1758367555616,-500.0,0.00019973,2]
[386538013,1758367555641,-500.0,0.00019973,2]
[386538014,1758367555668,-500.0,0.00019973,2]
[386538015,1758367555696,-151.0,0.00019997,2]
[386538016,1758367555726,-240.51481117,0.00019998,2]
[386538017,1758367555755,-293.26420877,0.00019998,2]
[386538018,1758367555783,-642.79000389,0.00019998,2]
[386538019,1758367555809,-500.0,0.00019998,2]
[386538020,1758367555836,-451.0,0.00019998,2]
[386538021,1758367555863,-670.0,0.00019998,2]
[386538022,1758367555889,-500.0,0.00019998,2]
[386538023,1758367555915,-150.0,0.00019998,2]
[386538024,1758367555940,-500.0,0.00019998,2]
[386538025,1758367555965,-250.0,0.00019998,2]
[386538026,1758367555991,-150.0,0.00019998,2]
[386538027,1758367556015,-460.0,0.00019998,2]
[386538028,1758367556042,-150.0,0.00019998,2]
[386538029,1758367556067,-150.0,0.00019998,2]
[386538030,1758367556092,-150.0,0.00019998,2]
[386538031,1758367556122,-150.0,0.00019998,2]
[386538032,1758367556148,-2789.0,0.00019998,2]
[386538033,1758367556173,-500.0,0.00019998,2]
[386538034,1758367556198,-501.57887605,0.00019998,2]
[386538407,1758367783786,150.0,0.00018,2]
[386538409,1758367784223,150.0,0.0001918,2]
[386538433,1758367837430,-164.74694,0.000198,2]
[386538434,1758367837440,-164.74695,0.000199,2]
[386538435,1758367837449,-500.0,0.00019973,2]
[386538436,1758367837459,-235.74567843,0.00019973,2]
[386538437,1758367837468,-500.0,0.00019973,2]
[386538438,1758367837477,-500.0,0.00019973,2]
[386538439,1758367837487,-500.0,0.00019973,2]
[386538440,1758367837496,-502.06339414,0.00019973,2]
[386538441,1758367837505,-500.0,0.00019973,2]
[386538442,1758367837515,-630.45675449,0.00019973,2]
[386538443,1758367837524,-1200.0,0.00019997,2]
[386538444,1758367837534,-154.71144448,0.00019997,2]
[386538445,1758367837544,-354.42112395,0.00019998,2]
[386538446,1758367837552,-150.0,0.00019998,2]
[386538447,1758367837562,-500.0,0.00019998,2]
[386538449,1758367837571,-150.0,0.00019998,2]
[386538451,1758367837580,-500.0,0.00019998,2]
[386538453,1758367837589,-168.36036782,0.00019998,2]
[386538455,1758367837598,-449.95300272,0.00019998,2]
[386538456,1758367837607,-205.28494614,0.00019998,2]
[386538458,1758367837617,-1000.0,0.00019999,2]
[386538460,1758367837626,-22563.0333458,0.00019999,2]
[386538462,1758367837636,-160.926,0.00019999,2]
[386538464,1758367837645,-150.0,0.00019999,2]
[386538466,1758367837655,-150.0,0.00019999,2]
[386538468,1758367837664,-500.0,0.00019999,2]
[386538471,1758367837673,-150.0,0.00019999,2]
[386538472,1758367837682,-500.0,0.00019999,2]
[386538474,1758367837692,-500.0,0.00019999,2]
[386538476,1758367837701,-3038.2585492,0.00019999,2]
[386538478,1758367837710,-9245.35766398,0.0002,2]
[386538480,1758367837719,-564.0,0.0002,2]
[386538482,1758367837728,-85056.69553444,0.0002,2]
[386538501,1758367837808,-794.76384075,0.0002,2]
[386538586,1758367840342,-235800.50295084,0.0002,2]
[386538587,1758367840352,-2479038.80864798,0.0002,2]
[386538588,1758367840379,-1758.61844505,0.0002,2]
[386538632,1758367843077,-8056.57099012,0.0002,2]
[386538633,1758367843183,-49746.98992863,0.0002,2]
[386538652,1758367846272,-1917.22029484,0.0002,2]
[386538887,1758368305687,150.0,0.00018,2]
[386538888,1758368306056,150.0,0.0001918,2]
[386538892,1758368345891,403.03,0.00019114,2]
[386538992,1758368397865,166.28,0.00019095,2]
[386539050,1758368463538,48638.17709777,0.00019999,30]
[386539051,1758368463563,22472.49230582,0.00019999,30]
[386539249,1758368832612,150.0,0.00018,2]
[386539250,1758368833139,150.0,0.0001918,2]
[386539252,1758368853587,279.936098,0.00017837,2]
[386539253,1758368854218,279.936098,0.00017801,2]
[386539254,1758368854305,279.936098,0.00017651,2]
[386539255,1758368854581,279.936098,0.00017651,2]
[386539256,1758368854836,279.936098,0.0001765,2]
[386539257,1758368855121,279.936098,0.00017615,2]
[386539258,1758368855675,279.936098,0.0001756,2]
[386539259,1758368855927,279.936098,0.00017559,2]
[386539260,1758368856217,279.936098,0.00017555,2]
[386539261,1758368856605,279.936098,0.00017451,2]
[386539262,1758368856989,279.936098,0.00017448,2]
[386539263,1758368857696,172.69766,0.00017837,2]
[386539264,1758368858029,279.936098,0.00017441,2]
[386539265,1758368858064,152.193358,0.00017837,2]
[386539266,1758368858392,279.936098,0.00017404,2]
[386539267,1758368858446,152.193358,0.00017801,2]
[386539268,1758368858690,279.936098,0.00017404,2]
[386539269,1758368858792,152.193358,0.00017441,2]
[386539270,1758368858997,279.936098,0.00017403,2]
[386539271,1758368859324,279.936098,0.00017369,2]
[386539272,1758368859607,279.936098,0.00017368,2]
[386539273,1758368860044,279.936098,0.00017345,2]
[386539274,1758368860160,478.954936,0.00017837,2]
[386539275,1758368860619,279.936098,0.00017313,2]
[386539276,1758368860725,478.954936,0.00017801,2]
[386539277,1758368860945,279.936098,0.00017308,2]
[386539278,1758368860998,478.954936,0.00017651,2]
[386539279,1758368861081,279.936098,0.00017306,2]
[386539280,1758368861119,478.954936,0.00017651,2]
[386539281,1758368861434,478.954936,0.0001765,2]
[386539282,1758368861734,478.954936,0.00017615,2]
[386539283,1758368862553,478.954936,0.0001756,2]
[386539284,1758368862804,478.954936,0.00017559,2]
[386539285,1758368862900,478.954936,0.00017555,2]
[386539286,1758368863116,478.954936,0.00017451,2]
[386539287,1758368863427,478.954936,0.00017448,2]
[386539288,1758368863488,256.010603,0.00017837,2]
[386539289,1758368863708,478.954936,0.00017441,2]
[386539290,1758368863820,256.010603,0.00017801,2]
[386539291,1758368864235,478.954936,0.00017404,2]
[386539292,1758368864281,256.010603,0.00017651,2]
[386539293,1758368864369,478.954936,0.00017404,2]
[386539294,1758368864530,256.010603,0.00017651,2]
[386539295,1758368864605,478.954936,0.00017403,2]
[386539296,1758368864821,256.010603,0.0001765,2]
[386539297,1758368864915,478.954936,0.00017369,2]
[386539298,1758368865236,478.954936,0.00017368,2]
[386539299,1758368865275,256.010603,0.00017615,2]
[386539300,1758368865532,478.954936,0.00017345,2]
[386539301,1758368865593,256.010603,0.0001756,2]
[386539302,1758368865906,478.954936,0.00017313,2]
[386539303,1758368865943,256.010603,0.00017559,2]
[386539304,1758368866218,256.010603,0.00017555,2]
[386539305,1758368866256,478.954936,0.00017308,2]
[386539306,1758368866585,478.954936,0.00017306,2]
[386539307,1758368867188,256.010603,0.00017451,2]
[386539308,1758368867517,256.010603,0.00017448,2]
[386539314,1758368868475,256.010603,0.00017441,2]
[386539321,1758368868894,256.010603,0.00017404,2]
[386539322,1758368869266,256.010603,0.00017404,2]
[386539323,1758368869566,256.010603,0.00017403,2]
[386539324,1758368869872,256.010603,0.00017369,2]
[386539325,1758368870211,256.010603,0.00017368,2]
[386539326,1758368870486,256.010603,0.00017345,2]
[386539327,1758368871165,256.010603,0.00017313,2]
[386539328,1758368871413,256.010603,0.00017308,2]
[386539329,1758368871606,256.010603,0.00017306,2]
[386539355,1758368913678,163.73,9.552e-05,2]
[386539356,1758368913894,163.73,0.0001194,2]
[386539357,1758368914131,163.73,0.00014328,2]
[386539358,1758368914342,163.73,0.00016716,2]
[386539359,1758368914528,163.73,0.00019104,2]
[386539393,1758368997136,237.73,0.00019108,2]
[386539432,1758369032334,-150.0,0.00019232,7]
[386539433,1758369032345,-174.73152514,0.00019238,2]
[386539434,1758369032378,-75.26847486,0.00019238,2]
[386539435,1758369032388,-168.0,0.00019283,2]
[386539436,1758369032398,-1154.52143879,0.00019742,2]
[386539437,1758369032409,-146.08218179,0.00019742,2]
[386539438,1758369032493,-619.35433313,0.00019742,2]
[386539439,1758369032505,-347.0,0.00019742,2]
[386539440,1758369032570,-42.08492387,0.00019742,2]
[386539441,1758369032580,-313.49503884,0.00019748,2]
[386539443,1758369037613,-336.5141807,0.00019748,2]
[386539444,1758369037623,-31.56159306,0.00019753,2]
[386539448,1758369038190,-1110.0844798,0.00019753,2]
[386539449,1758369038200,-166.09,0.00019758,2]
[386539450,1758369038210,-47.09745728,0.00019761,2]
[386539451,1758369038222,-602.91176226,0.00019761,2]
[386539452,1758369038232,-650.00921954,0.00019765,2]
[386539453,1758369038242,-1154.52143879,0.00019768,2]
[386539454,1758369038252,-1154.52143879,0.00019772,2]
[386539455,1758369038261,-1055.04614062,0.00019773,2]
[386539456,1758369038298,-403.02650114,0.00019773,2]
[386539457,1758369038408,-389.2,0.00019773,2]
[386539458,1758369038510,-1380.46982003,0.00019773,2]
[386539460,1758369040233,-3318.16694843,0.00019773,2]
[386539461,1758369040243,-6545.90941022,0.00019774,2]
[386539462,1758369040253,-1141.64607286,0.00019786,2]
[386539463,1758369040263,-6545.90941022,0.00019789,2]
[386539464,1758369040272,-33671.85680214,0.00019794,2]
[386539465,1758369040282,-33671.85680214,0.00019795,2]
[386539466,1758369040291,-650.00921954,0.00019798,2]
[386539467,1758369040306,-33671.85680214,0.000198,2]
[386539468,1758369040316,-650.00921954,0.00019806,2]
[386539469,1758369040326,-6545.90941022,0.00019808,2]
[386539470,1758369040335,-650.00921954,0.00019811,2]
[386539471,1758369040345,-1141.64607286,0.00019815,2]
[386539472,1758369040355,-33671.85680214,0.00019816,2]
[386539473,1758369040364,-6545.90941022,0.00019821,2]
[386539474,1758369040375,-650.00921954,0.00019825,2]
[386539475,1758369040385,-1141.64607286,0.00019836,2]
[386539476,1758369040395,-6545.90941022,0.00019851,2]
[386539477,1758369040404,-1141.64607286,0.00019859,2]
[386539478,1758369040413,-33671.85680214,0.0001986,2]
[386539479,1758369040423,-33671.85680214,0.00019863,2]
[386539480,1758369040432,-33671.85680214,0.00019864,2]
[386539481,1758369040441,-1154.52143879,0.00019868,2]
[386539482,1758369040451,-1141.64607286,0.00019869,2]
[386539483,1758369040462,-6545.90941022,0.00019869,2]
[386539484,1758369040472,-1154.52143879,0.00019871,2]
[386539485,1758369040482,-1154.52143879,0.00019892,2]
[386539486,1758369040491,-1141.64607286,0.00019892,2]
[386539487,1758369040501,-300.0,0.00019899,2]
[386539488,1758369040511,-1200.0,0.00019899,2]
[386539489,1758369040521,-166.29516957,0.000199,2]
[386539490,1758369040530,-159.13801959,0.000199,2]
[386539491,1758369040540,-5774.64916065,0.000199,2]
[386539492,1758369040550,-150.02540457,0.000199,2]
[386539493,1758369040559,-501.48738268,0.00019973,2]
[386539494,1758369040569,-514.28884812,0.00019973,2]
[386539495,1758369040579,-500.0,0.00019973,2]
[386539496,1758369040588,-579.42447999,0.00019973,2]
[386539497,1758369040598,-500.0,0.00019973,2]
[386539498,1758369040607,-500.0,0.00019973,2]
[386539499,1758369040618,-500.0,0.00019973,2]